bitfinex-derivatives/quotes_ETHF0:USTF0_20250702
["timestamp","ask_amount","ask_price","bid_price","bid_amount"]
[1751444008572,0.81622,2449.7,2449.6,42.31305]
[1751444009066,0.81622,2449.7,2449.6,41.4968]
[1751444011075,0.81622,2449.7,2449.6,42.31305]
[1751444011371,0.81622,2449.7,2449.6,41.4968]
[1751444011873,0.81622,2449.7,2449.6,42.31305]
[1751444012072,0.81622,2449.7,2449.6,43.75425]
[1751444012274,0.81622,2449.7,2449.6,42.938]
[1751444012463,2.88257779,2450.1,2449.6,47.32361703]
[1751444012667,24.847,2450.0,2449.8,2.0404]
[1751444012867,0.81612,2450.0,2449.9,1.3513]
[1751444013068,25.66312,2450.0,2449.9,2.0336]
[1751444014773,2.88257779,2450.1,2449.9,4.074]
[1751444014973,3.69867779,2450.1,2450.0,5.73691703]
[1751444015172,24.846,2450.1,2450.0,6.55303703]
[1751444015376,24.846,2450.1,2450.0,7.24853703]
[1751444015571,25.66209,2450.1,2450.0,5.73691703]
[1751444016075,25.66209,2450.1,2450.0,3.3917]
[1751444018772,25.66209,2450.1,2450.0,4.20782]
[1751444019677,25.66209,2450.1,2450.0,3.3917]
[1751444020068,0.81606,2450.2,2450.0,4.2078]
[1751444020378,0.81606,2450.2,2450.1,3.4519]
[1751444020676,25.65706,2450.2,2450.1,3.4519]
[1751444020978,24.841,2450.2,2450.1,4.26799]
[1751444021476,25.65705,2450.2,2450.1,3.4519]
[1751444021677,0.81605,2450.2,2450.1,4.26799]
[1751444021976,25.65705,2450.2,2450.1,3.4519]
[1751444022572,0.81604,2450.3,2450.1,3.4519]
[1751444022772,0.81604,2450.3,2450.2,2.0408]
[1751444022968,25.65504,2450.3,2450.2,2.0408]
[1751444023578,0.81604,2450.3,2450.2,2.0408]
[1751444023778,25.65504,2450.3,2450.2,2.0408]
[1751444025876,25.65304,2450.3,2450.2,2.0408]
[1751444027381,24.837,2450.3,2449.6,43.14521703]
[1751444027581,0.8162,2449.8,2449.7,2.6801]
[1751444027983,0.8162,2449.8,2449.7,5.5367]
[1751444028180,0.8162,2449.8,2449.7,4.7205]
[1751444028380,0.8162,2449.8,2449.7,1.985]
[1751444029386,0.8162,2449.8,2449.7,4.84162]
[1751444030181,0.8162,2449.8,2449.7,4.0254]
[1751444035200,0.8162,2449.8,2449.7,1.985]
[1751444041900,0.8162,2449.8,2449.7,2.80122]
[1751444042103,24.831,2449.8,2449.7,7.18683703]
[1751444042304,3.69871779,2450.0,2449.7,7.03811703]
[1751444042596,2.88257779,2450.0,2449.9,5.20176703]
[1751444042802,27.71257779,2450.0,2449.9,5.20176703]
[1751444042999,28.52869779,2450.0,2449.9,5.20176703]
[1751444043397,28.52869779,2450.0,2449.9,4.38561703]
[1751444043903,28.52869779,2450.0,2449.9,5.71661703]
[1751444044401,25.64612,2450.0,2449.9,5.71661703]
[1751444047006,0.81612,2450.0,2449.9,5.71661703]
[1751444047204,25.64312,2450.0,2449.9,5.71661703]
[1751444048302,0.81612,2450.0,2449.9,5.71661703]
[1751444048504,25.64212,2450.0,2449.9,5.71661703]
[1751444049008,25.64212,2450.0,2449.9,6.44491703]
[1751444050099,25.64212,2450.0,2449.9,4.0997]
[1751444050299,25.64212,2450.0,2449.9,3.3714]
[1751444050507,25.64212,2450.0,2449.9,1.331]
[1751444054509,25.64212,2450.0,2449.7,0.6602]
[1751444054510,0.81619,2449.8,2449.7,0.6602]
[1751444058212,0.81619,2449.8,2449.7,2.85322]
[1751444058414,25.63719,2449.8,2449.7,6.42261703]
[1751444058713,24.821,2449.8,2449.7,7.90093703]
[1751444058913,25.63719,2449.8,2449.7,7.08471703]
[1751444064419,25.63719,2449.8,2449.7,6.42261703]
[1751444064618,25.63719,2449.8,2449.7,7.09911703]
[1751444066421,25.63719,2449.8,2449.7,7.91533703]
[1751444066920,24.821,2449.8,2449.7,7.91533703]
[1751444067716,0.81618,2449.9,2449.7,7.91533703]
[1751444068021,0.81619,2449.8,2449.7,3.82163703]
[1751444068217,25.63317,2449.9,2449.7,4.48883703]
[1751444068416,25.63317,2449.9,2449.8,2.0404]
[1751444069520,0.81617,2449.9,2449.8,2.0404]
[1751444069819,25.63217,2449.9,2449.8,2.0404]
[1751444070319,0.81617,2449.9,2449.8,2.0404]
[1751444070622,25.63217,2449.9,2449.8,2.0404]
[1751444073324,0.81617,2449.9,2449.8,2.0404]
[1751444073625,25.63017,2449.9,2449.8,2.0404]
[1751444077728,25.63017,2449.9,2449.8,2.85659]
[1751444079028,25.63017,2449.9,2449.8,2.0404]
[1751444081332,25.63017,2449.9,2449.8,3.4531]
[1751444082432,25.63017,2449.9,2449.8,4.26929]
[1751444083132,25.63017,2449.9,2449.8,3.4531]
[1751444085836,25.63017,2449.9,2449.8,4.26929]
[1751444086737,24.814,2449.9,2449.8,4.26929]
[1751444087336,0.81614,2450.0,2449.8,4.26929]
[1751444087538,0.81614,2450.0,2449.9,3.3917]
[1751444087737,25.62314,2450.0,2449.9,3.3917]
[1751444087938,0.81614,2450.0,2449.9,4.20785]
[1751444088138,25.62314,2450.0,2449.9,3.3917]
[1751444090440,0.81619,2449.8,2449.7,2.1658]
[1751444090740,0.81618,2449.9,2449.7,2.1658]
[1751444090938,0.81618,2449.9,2449.7,3.5719]
[1751444091141,0.81618,2449.9,2449.8,3.4465]
[1751444092837,0.81618,2449.9,2449.8,4.26269]
[1751444093043,0.81618,2449.9,2449.8,3.4465]
[1751444093243,25.62018,2449.9,2449.8,3.4465]
[1751444093644,0.81618,2449.9,2449.8,3.4465]
[1751444093943,25.62018,2449.9,2449.8,3.4465]
[1751444097950,27.96539703,2449.9,2449.7,0.6602]
[1751444098256,0.81627,2449.6,2449.3,1.3587]
[1751444098453,0.81624,2449.7,2449.6,2.0404]
[1751444098650,25.61724,2449.7,2449.6,3.3991]
[1751444100660,0.81615,2450.0,2449.8,0.81618]
[1751444100860,12.34407,2450.2,2450.0,0.8161]
[1751444101157,14.41057779,2450.4,2450.1,3.3645]
[1751444101361,25.61705,2450.3,2450.2,1.3241]
[1751444101958,25.61702,2450.3,2450.2,1.3241]
[1751444102263,0.81602,2450.3,2450.2,3.3645]
[1751444102458,5.22779482,2450.6,2450.2,3.3645]
[1751444102459,11.528,2450.6,2450.2,3.3645]
[1751444102766,25.61603,2450.3,2450.1,3.16128703]
[1751444102963,24.8,2450.3,2450.1,3.16128703]
[1751444103164,24.8,2450.3,2450.2,2.0404]
[1751444103367,24.8,2450.3,2450.2,2.85645]
[1751444103862,24.8,2450.3,2450.2,2.0404]
[1751444104164,24.8,2450.3,2450.2,2.85645]
[1751444105964,25.61602,2450.3,2450.2,2.0404]
[1751444106762,0.81614,2450.0,2449.8,0.81617]
[1751444107165,0.81614,2450.0,2449.9,2.0404]
[1751444111067,0.7083,2450.2,2449.9,2.0404]
[1751444111368,0.81612,2450.0,2449.9,2.85654]
[1751444111970,0.81612,2450.0,2449.9,3.55774]
[1751444112471,0.81611,2450.1,2449.9,3.55774]
[1751444112775,0.81611,2450.1,2450.0,2.0404]
[1751444113872,0.81612,2450.0,2449.9,1.51734]
[1751444114169,0.81611,2450.1,2450.0,2.0404]
[1751444114366,0.81611,2450.1,2450.0,2.85652]
[1751444114565,5.22779482,2450.4,2450.0,0.81612]
[1751444114765,0.81611,2450.1,2449.9,1.51733]
[1751444114973,24.794,2450.3,2450.0,2.0404]
[1751444115174,0.81609,2450.1,2450.0,2.0404]
[1751444115468,0.81612,2450.0,2449.9,1.51735]
[1751444115771,0.81612,2450.0,2449.9,0.7012]
[1751444115968,0.81612,2450.0,2449.9,3.55775]
[1751444116170,0.81612,2450.0,2449.9,2.7416]
[1751444116469,0.81612,2450.0,2449.9,3.55775]
[1751444117170,0.81612,2450.0,2449.9,2.7416]
[1751444118373,0.81622,2449.7,2449.6,0.7052]
[1751444118872,0.81621,2449.8,2449.6,3.56183]
[1751444119074,0.81621,2449.8,2449.6,1.52143]
[1751444119272,0.81621,2449.8,2449.7,2.0404]
[1751444119880,2.34521703,2449.8,2449.5,0.6882]
[1751444120171,0.81625,2449.6,2449.5,1.50449]
[1751444121172,0.81625,2449.6,2449.5,2.0803]
[1751444122176,0.81625,2449.6,2449.5,4.1207]
[1751444122874,0.81625,2449.6,2449.5,2.0803]
[1751444123376,2.04084,2449.4,2448.8,0.81651]
[1751444123681,3.16163703,2449.1,2449.0,2.0404]
[1751444123980,0.81642,2449.1,2449.0,2.0404]
[1751444124177,27.22211703,2449.3,2449.0,2.0404]
[1751444124378,0.81635,2449.3,2449.2,2.0404]
[1751444124575,25.60835,2449.3,2449.2,2.0404]
[1751444124778,0.81642,2449.1,2449.0,1.3764]
[1751444125181,0.81642,2449.1,2449.0,4.23325]
[1751444126080,0.81639,2449.2,2449.1,0.81641]
[1751444126276,12.2043,2449.5,2449.2,2.0404]
[1751444126578,0.81637,2449.3,2449.2,2.0404]
[1751444126782,0.81637,2449.3,2449.2,4.1156]
[1751444129483,0.81637,2449.3,2449.2,2.7483]
[1751444129679,0.81645,2449.0,2448.9,40.8]
[1751444129877,0.81649,2448.9,2448.8,1.4518]
[1751444130480,0.81649,2448.9,2448.8,44.9847]
[1751444130681,0.81649,2448.9,2448.8,45.80122]
[1751444130981,0.81649,2448.9,2448.8,44.9847]
[1751444131482,0.81649,2448.9,2448.8,45.80122]
[1751444131785,24.795,2449.0,2448.8,45.8012]
[1751444131983,25.61145,2449.0,2448.9,4.28869]
[1751444132282,25.61145,2449.0,2448.9,3.4722]
[1751444132883,0.81645,2449.0,2448.9,3.4722]
[1751444133085,25.61045,2449.0,2448.9,3.4722]
[1751444134281,0.81643,2449.1,2448.9,5.81741703]
[1751444134583,0.81642,2449.1,2449.0,3.4722]
[1751444134782,24.795,2449.1,2449.0,3.4722]
[1751444135281,24.795,2449.1,2449.0,4.28865]
[1751444135483,0.81637,2449.3,2449.1,0.8164]
[1751444135682,0.81637,2449.3,2449.2,2.0969]
[1751444135881,25.61137,2449.3,2449.2,2.0969]
[1751444137379,25.61137,2449.3,2449.2,4.1373]
[1751444138979,0.81634,2449.4,2449.2,4.95369]
[1751444139187,0.81634,2449.4,2449.3,1.3162]
[1751444139384,25.61134,2449.4,2449.3,1.3162]
[1751444139588,0.81631,2449.5,2449.3,1.3162]
[1751444139886,0.81618,2449.9,2449.7,0.8162]
[1751444140088,11.525,2450.1,2449.8,4.0605]
[1751444140291,0.81615,2449.9,2449.8,4.0605]
[1751444140584,0.81615,2449.9,2449.8,2.0201]
[1751444142986,0.81615,2449.9,2449.8,2.83629]
[1751444143190,0.81615,2449.9,2449.8,2.0201]
[1751444144193,0.81615,2449.9,2449.8,2.83629]
[1751444144395,25.60915,2449.9,2449.8,2.83629]
[1751444144693,24.792,2449.9,2449.8,4.87669]
[1751444145094,12.34008,2450.2,2450.0,0.81611]
[1751444145296,12.34008,2450.2,2450.1,2.0404]
[1751444145491,37.13208,2450.2,2450.1,4.0204]
[1751444145686,37.13208,2450.2,2450.1,1.98]
[1751444146993,12.34008,2450.2,2450.1,1.98]
[1751444147200,37.13105,2450.2,2450.1,1.98]
[1751444147400,37.13005,2450.2,2450.1,1.98]
[1751444148400,12.34005,2450.2,2450.1,1.98]
[1751444148602,11.524,2450.2,2450.1,7.18170703]
[1751444148899,24.789,2450.2,2450.1,7.89210703]
[1751444149496,59.58298,2450.5,2450.3,0.81601]
[1751444149696,59.58298,2450.5,2450.4,3.3672]
[1751444149898,84.37098,2450.5,2450.4,4.0369]
[1751444150096,84.37098,2450.5,2450.4,1.9965]
[1751444150502,59.58298,2450.5,2450.4,1.9965]
[1751444150703,84.37095,2450.5,2450.4,4.0369]
[1751444151100,84.37095,2450.5,2450.4,4.85289]
[1751444151301,84.37095,2450.5,2450.4,4.0369]
[1751444151508,25.60395,2450.5,2450.4,4.0369]
[1751444152806,24.786,2450.5,2450.4,4.85286]
[1751444153799,0.81591,2450.7,2450.5,0.81595]
[1751444154004,0.81591,2450.7,2450.6,1.4155]
[1751444154303,25.60091,2450.7,2450.6,1.4155]
[1751444154501,0.81595,2450.6,2450.4,0.6697]
[1751444154694,0.81595,2450.6,2450.5,2.0404]
[1751444155099,0.81595,2450.5,2450.4,2.90119]
[1751444155598,0.81595,2450.5,2450.4,4.94159]
[1751444155800,0.81594,2450.6,2450.4,4.94159]
[1751444156003,0.81594,2450.6,2450.5,2.0404]
[1751444156401,0.81595,2450.5,2450.4,2.90119]
[1751444156905,0.81595,2450.5,2450.4,4.94159]
[1751444157105,0.81594,2450.6,2450.4,4.94159]
[1751444157308,0.81594,2450.6,2450.5,4.25035]
[1751444157805,0.81594,2450.6,2450.5,2.20995]
[1751444158007,0.81594,2450.6,2450.5,1.394]
[1751444159305,0.81595,2450.5,2450.4,0.6697]
[1751444159505,0.81595,2450.5,2450.4,3.52609]
[1751444159806,0.81595,2450.5,2450.4,2.7101]
[1751444159999,0.81595,2450.5,2450.4,3.52609]
[1751444160708,24.781,2450.5,2450.4,3.52609]
[1751444160905,25.59695,2450.5,2450.4,2.7101]
[1751444161105,25.59595,2450.5,2450.4,2.7101]
[1751444161912,25.59595,2450.5,2450.4,3.52609]
[1751444162612,25.59595,2450.5,2450.4,2.7101]
[1751444163105,3.16115703,2450.6,2450.4,4.88219]
[1751444163308,24.779,2450.5,2450.4,45.68219]
[1751444163511,25.59495,2450.5,2450.4,44.8662]
[1751444164412,24.779,2450.5,2450.4,45.68219]
[1751444164613,25.59495,2450.5,2450.4,44.8662]
[1751444164814,25.59495,2450.5,2450.4,45.68219]
[1751444165110,25.59495,2450.5,2450.4,44.8662]
[1751444167505,0.81595,2450.5,2450.4,44.8662]
[1751444167708,25.59295,2450.5,2450.4,45.68219]
[1751444168110,25.59295,2450.5,2450.4,44.8662]
[1751444170314,25.59195,2450.5,2450.4,45.68219]
[1751444170514,25.59195,2450.5,2450.4,44.8662]
[1751444170909,24.776,2450.5,2450.4,45.68217]
[1751444171105,2.88257779,2450.8,2450.4,44.8662]
[1751444171315,25.5919,2450.7,2450.6,2.0404]
[1751444171810,25.5909,2450.7,2450.6,2.0404]
[1751444172109,25.5909,2450.7,2450.6,2.85632]
[1751444172310,24.775,2450.7,2450.6,2.85632]
[1751444172611,24.775,2450.7,2450.5,3.16116703]
[1751444172911,25.59092,2450.6,2450.4,42.28567]
[1751444173115,24.775,2450.6,2450.5,0.81595]
[1751444173415,24.775,2450.6,2450.5,2.85635]
[1751444173713,25.59092,2450.6,2450.5,2.85635]
[1751444173914,25.59092,2450.6,2450.5,2.0404]
[1751444174114,24.775,2450.6,2450.5,2.85635]
[1751444175016,25.59092,2450.6,2450.5,2.85635]
[1751444175215,24.775,2450.6,2450.5,2.85635]
[1751444176116,24.775,2450.6,2450.5,5.20156703]
[1751444176518,24.775,2450.6,2450.5,2.85635]
[1751444176719,0.81588,2450.8,2450.6,0.81592]
[1751444177014,24.773,2450.7,2450.6,0.81592]
[1751444177216,25.58891,2450.7,2450.5,0.81594]
[1751444177418,0.81591,2450.7,2450.6,2.85632]
[1751444177606,25.58791,2450.7,2450.6,2.0404]
[1751444177814,0.81592,2450.6,2450.4,42.30816]
[1751444178116,0.81592,2450.6,2450.5,2.0404]
[1751444178911,0.81592,2450.6,2450.5,2.85635]
[1751444179111,25.58791,2450.7,2450.5,2.85635]
[1751444180317,25.5879,2450.7,2450.5,2.85632]
[1751444180615,25.5879,2450.7,2450.6,0.81592]
[1751444181119,25.5869,2450.7,2450.6,0.81592]
[1751444181513,25.5869,2450.7,2450.6,2.85632]
[1751444182015,25.5869,2450.7,2450.6,2.0404]
[1751444183518,0.81595,2450.5,2450.4,41.4922]
[1751444183717,0.81595,2450.5,2450.4,40.8]
[1751444183920,0.81595,2450.5,2450.4,42.8404]
[1751444184122,0.81594,2450.6,2450.4,43.65637]
[1751444184422,0.81594,2450.6,2450.5,2.0404]
[1751444184913,0.81594,2450.6,2450.4,41.61597]
[1751444185223,0.81594,2450.6,2450.5,2.0404]
[1751444185618,0.81595,2450.5,2450.4,41.61597]
[1751444185824,0.81592,2450.7,2450.5,2.85634]
[1751444186024,24.768,2450.6,2450.5,2.85634]
[1751444186224,25.58392,2450.6,2450.5,0.81594]
[1751444186628,24.768,2450.6,2450.5,0.81594]
[1751444186927,25.58392,2450.6,2450.5,0.81594]
[1751444187126,25.58392,2450.6,2450.4,41.61597]
[1751444187329,25.58392,2450.6,2450.5,2.0404]
[1751444187531,25.58392,2450.6,2450.5,2.85635]
[1751444187734,25.58392,2450.6,2450.5,0.81595]
[1751444188029,0.81592,2450.6,2450.5,0.81595]
[1751444188327,25.58394,2450.6,2450.4,41.61598]
[1751444188524,25.58394,2450.6,2450.5,2.0404]
[1751444189026,25.58394,2450.6,2450.4,41.61598]
[1751444189231,25.58394,2450.6,2450.5,2.0404]
[1751444189730,0.81595,2450.5,2450.4,40.8]
[1751444190131,0.81595,2450.5,2450.4,42.8404]
[1751444190729,0.81595,2450.5,2450.4,2.0404]
[1751444191032,0.81597,2450.5,2450.3,0.81602]
[1751444191232,0.81597,2450.5,2450.4,2.85639]
[1751444191432,0.81597,2450.5,2450.4,2.0404]
[1751444191633,0.81597,2450.5,2450.3,0.816]
[1751444191833,0.81597,2450.5,2450.4,2.0404]
[1751444192228,0.81597,2450.5,2450.3,0.816]
[1751444192430,0.81597,2450.5,2450.4,2.0404]
[1751444193041,0.81599,2450.4,2450.3,0.816]
[1751444193533,0.81599,2450.4,2450.3,2.0404]
[1751444193732,0.81599,2450.4,2450.3,2.85642]
[1751444193937,0.81599,2450.4,2450.3,2.0404]
[1751444194149,0.81602,2450.3,2450.2,0.6905]
[1751444194434,25.58202,2450.3,2450.2,2.7309]
[1751444195432,0.81605,2450.2,2450.1,1.4525]
[1751444195637,0.81605,2450.2,2450.1,2.0404]
[1751444198636,0.81609,2450.1,2449.9,2.86953]
[1751444198836,0.81608,2450.2,2450.0,0.81612]
[1751444199138,0.81608,2450.2,2450.1,2.0404]
[1751444199535,0.81609,2450.1,2450.0,1.4403]
[1751444199935,0.81609,2450.1,2450.0,3.4807]
[1751444200140,0.81612,2450.0,2449.9,0.671]
[1751444200346,0.81626,2449.6,2449.4,0.81629]
[1751444200541,24.765,2449.7,2449.5,1.4403]
[1751444200837,25.58122,2449.7,2449.5,43.05656]
[1751444201142,24.765,2449.7,2449.6,2.85665]
[1751444201330,24.765,2449.7,2449.6,4.99945]
[1751444201729,25.58122,2449.7,2449.6,4.1832]
[1751444201941,24.765,2449.7,2449.6,4.99945]
[1751444202145,25.58122,2449.7,2449.6,4.99945]
[1751444202441,25.58122,2449.7,2449.6,4.1832]
[1751444202641,25.58122,2449.7,2449.6,2.1428]
[1751444202841,25.58122,2449.7,2449.6,4.1832]
[1751444205043,24.765,2449.7,2449.6,4.99945]
[1751444206342,25.58122,2449.7,2449.6,4.1832]
[1751444206738,25.58122,2449.7,2449.6,4.99945]
[1751444206940,25.58122,2449.7,2449.6,4.1832]
[1751444207238,25.58122,2449.7,2449.6,4.99945]
[1751444207239,24.765,2449.7,2449.6,4.99945]
[1751444207840,24.765,2449.7,2449.6,7.34466703]
[1751444208040,25.58122,2449.7,2449.6,6.52841703]
[1751444208241,24.765,2449.7,2449.6,7.34466703]
[1751444210646,0.81621,2449.8,2449.6,7.34466703]
[1751444210941,25.58221,2449.8,2449.7,3.4071]
[1751444211136,0.81622,2449.7,2449.6,0.7025]
[1751444211944,0.81622,2449.7,2449.6,2.0692]
[1751444213140,25.58122,2449.7,2449.6,2.0692]
[1751444213346,27.64757779,2449.7,2448.6,0.32809818]
[1751444213545,0.81639,2449.2,2449.1,2.0404]
[1751444213744,0.81639,2449.2,2449.1,44.2071]
[1751444216847,0.81639,2449.2,2449.1,45.02352]
[1751444217045,25.58137,2449.3,2449.1,45.02349]
[1751444217245,25.58137,2449.3,2449.2,3.69551703]
[1751444217445,4.92318779,2449.7,2449.2,3.69551703]
[1751444217446,24.765,2449.5,2449.2,12.587862]
[1751444217647,0.81632,2449.4,2449.3,1.3503]
[1751444218048,0.81632,2449.4,2449.3,3.3907]
[1751444221949,0.81626,2449.6,2449.3,3.3907]
[1751444222251,25.58228,2449.6,2449.5,2.0404]
[1751444222553,11.511,2449.8,2449.5,7.2455698]
[1751444222756,0.81617,2449.9,2449.7,5.20181703]
[1751444223049,0.81617,2449.9,2449.5,7.9952698]
[1751444223050,24.766,2450.0,2449.8,2.0404]
[1751444223247,0.81619,2449.8,2449.7,2.0404]
[1751444223651,0.81622,2449.7,2449.6,1.3999]
[1751444223847,0.81622,2449.7,2449.6,3.4403]
[1751444227045,25.58122,2449.7,2449.6,3.4403]
[1751444227954,24.765,2449.7,2449.6,4.25655]
[1751444228354,24.765,2449.7,2449.6,3.4403]
[1751444228951,25.58122,2449.7,2449.6,4.1561]
[1751444229153,24.765,2449.7,2449.6,4.97235]
[1751444229351,0.81621,2449.8,2449.6,4.97235]
[1751444229547,12.32715,2450.0,2449.8,0.81617]
[1751444229751,12.32715,2450.0,2449.9,1.3957]
[1751444229947,37.09115,2450.0,2449.9,2.114]
[1751444231859,37.09115,2450.0,2449.9,0.7183]
[1751444233062,0.81622,2449.8,2449.6,2.1115]
[1751444233358,25.57922,2449.7,2449.6,0.7158]
[1751444233760,25.57922,2449.7,2449.6,2.7562]
[1751444234662,25.57922,2449.7,2449.6,3.4502]
[1751444239962,25.57922,2449.7,2449.6,2.7344]
[1751444242666,0.81622,2449.7,2449.6,2.7344]
[1751444242864,25.57722,2449.7,2449.6,2.7344]
[1751444243661,7.26806482,2450.1,2449.6,2.7344]
[1751444243662,11.51,2450.0,2449.6,2.7344]
[1751444243866,25.57718,2449.9,2449.8,4.38561703]
[1751444244571,0.81618,2449.9,2449.8,4.38561703]
[1751444244771,25.57618,2449.9,2449.8,4.38561703]
[1751444245269,24.76,2449.9,2449.8,5.20180703]
[1751444245872,25.57615,2449.9,2449.8,4.38561703]
[1751444246173,24.76,2449.9,2449.8,5.20180703]
[1751444246373,25.57615,2449.9,2449.8,4.38561703]
[1751444246668,0.81614,2450.0,2449.8,5.20180703]
[1751444246869,11.51,2450.1,2450.0,2.85652]
[1751444247070,11.51,2450.1,2450.0,4.38561703]
[1751444247071,0.81609,2450.1,2450.0,4.38561703]
[1751444247373,25.57609,2450.1,2450.0,4.38561703]
[1751444247578,25.57609,2450.1,2450.0,5.06161703]
[1751444247976,24.76,2450.1,2450.0,5.87773703]
[1751444248368,24.759,2450.1,2450.0,5.87773703]
[1751444248564,70.258,2450.3,2450.0,5.06161703]
[1751444248872,71.07404,2450.3,2450.2,4.38561703]
[1751444249072,95.83304,2450.3,2450.2,4.38561703]
[1751444249372,95.83304,2450.3,2450.2,2.0404]
[1751444251477,0.81612,2450.0,2449.9,2.0961]
[1751444251677,25.57312,2450.0,2449.9,2.0961]
[1751444251974,25.57312,2450.0,2449.9,4.1365]
[1751444253374,24.757,2450.0,2449.9,4.95265]
[1751444253778,25.57312,2450.0,2449.9,4.1365]
[1751444258284,25.57312,2450.0,2449.9,2.7704]
[1751444258579,25.57312,2450.0,2449.9,2.0404]
[1751444258877,0.81619,2449.8,2449.7,1.47642]
[1751444259084,0.81619,2449.8,2449.7,2.93652]
[1751444259279,0.81619,2449.8,2449.7,4.1607]
[1751444259687,0.81623,2449.7,2449.5,1.48418]
[1751444259886,25.57123,2449.7,2449.5,1.48418]
[1751444260186,25.57123,2449.7,2449.6,2.7006]
[1751444261784,25.57122,2449.7,2449.6,2.7006]
[1751444261989,24.755,2449.7,2449.6,4.95015]
[1751444262190,25.57122,2449.7,2449.6,4.1339]
[1751444262393,24.755,2449.7,2449.6,4.1339]
[1751444262587,25.57122,2449.7,2449.6,4.1339]
[1751444263193,24.755,2449.7,2449.6,4.95015]
[1751444263491,0.8162,2449.8,2449.6,4.95015]
[1751444263698,24.754,2449.8,2449.7,5.73261703]
[1751444263898,24.754,2449.8,2449.7,6.54883703]
[1751444264593,25.57019,2449.8,2449.7,5.73261703]
[1751444265995,0.81618,2449.9,2449.7,6.54883703]
[1751444266200,0.81615,2449.9,2449.8,3.4177]
[1751444266402,25.57015,2449.9,2449.8,3.4177]
[1751444266599,24.754,2449.9,2449.8,3.4177]
[1751444267097,2.88257779,2450.0,2449.8,3.4177]
[1751444267297,2.88257779,2450.0,2449.9,6.57906703]
[1751444267596,11.507,2450.4,2450.3,0.81602]
[1751444267802,36.261,2450.4,2450.3,2.0404]
[1751444268100,37.07699,2450.4,2450.3,2.0404]
[1751444268302,37.07699,2450.4,2450.3,4.1404]
[1751444268497,24.754,2450.4,2450.3,4.1404]
[1751444268900,24.754,2450.4,2450.3,44.9404]
[1751444269101,25.56999,2450.4,2450.3,44.9404]
[1751444273696,27.91520703,2450.4,2450.3,43.5631]
[1751444273895,27.91520703,2450.4,2450.3,42.8404]
[1751444274898,58.748,2450.7,2450.3,45.18561703]
[1751444275091,58.748,2450.7,2450.6,4.38561703]
[1751444275092,0.81589,2450.7,2450.6,4.38561703]
[1751444275299,25.56489,2450.7,2450.6,2.0404]
[1751444276104,25.5649,2450.7,2450.4,2.98628]
[1751444276299,24.749,2450.7,2450.5,2.0404]
[1751444276499,0.81592,2450.6,2450.5,2.0404]
[1751444276699,0.8159,2450.7,2450.5,0.81594]
[1751444276992,24.749,2450.6,2450.5,0.81594]
[1751444277398,24.749,2450.6,2450.5,2.27644]
[1751444278005,24.749,2450.6,2450.5,4.31684]
[1751444278306,3.02401703,2450.9,2450.5,3.5009]
[1751444278606,11.501,2450.9,2450.8,0.81585]
[1751444278904,3.69837779,2451.0,2450.8,0.81585]
[1751444279105,36.248,2450.9,2450.8,0.81585]
[1751444279301,37.06382,2450.9,2450.8,1.3712]
[1751444279705,2.88257779,2451.0,2450.8,2.18705]
[1751444279904,2.88257779,2451.0,2450.8,4.53225703]
[1751444280107,2.88257779,2451.0,2450.9,1.3712]
[1751444280500,3.69837779,2451.0,2450.9,1.3712]
[1751444280706,27.62957779,2451.0,2450.9,1.3712]
[1751444281008,28.44536779,2451.0,2450.9,1.3712]
[1751444282911,25.56279,2451.0,2450.9,1.3712]
[1751444283711,11.501,2451.1,2450.9,1.3712]
[1751444283907,25.55979,2451.0,2450.9,1.3712]
[1751444284814,25.55981,2451.0,2450.7,0.81589]
[1751444285013,0.81582,2450.9,2450.8,2.0404]
[1751444285213,0.81582,2450.9,2450.8,3.3623]
[1751444287308,0.81582,2450.9,2450.8,1.3219]
[1751444287309,3.16103703,2450.9,2450.8,1.3219]
[1751444287510,3.16105703,2450.9,2450.4,0.6785]
[1751444287716,0.81584,2450.9,2450.7,2.85628]
[1751444288518,0.81583,2450.9,2450.7,0.81587]
[1751444288718,0.81583,2450.9,2450.8,3.4067]
[1751444288913,25.55783,2450.9,2450.8,3.4067]
[1751444289114,25.55783,2450.9,2450.8,1.3663]
[1751444289414,24.742,2450.9,2450.8,1.3663]
[1751444289814,25.55782,2450.9,2450.8,1.3663]
[1751444290118,0.81586,2450.8,2450.6,0.8159]
[1751444290312,0.81589,2450.7,2450.6,1.4159]
[1751444290515,0.81592,2450.6,2450.4,1.52686]
[1751444290708,25.55692,2450.6,2450.5,2.0404]
[1751444290912,27.90213703,2450.6,2450.5,2.0404]
[1751444291119,0.81597,2450.5,2450.3,41.616]
[1751444291417,25.55694,2450.6,2450.5,2.0404]
[1751444291818,25.55694,2450.6,2450.4,0.81598]
[1751444292012,25.55694,2450.6,2450.5,2.0404]
[1751444292413,25.55694,2450.6,2450.4,0.81598]
[1751444292721,25.55694,2450.6,2450.5,2.0404]
[1751444293118,25.55694,2450.6,2450.4,2.23188]
[1751444293419,25.55694,2450.6,2450.5,2.0404]
[1751444293818,25.55694,2450.6,2450.4,2.23188]
[1751444294023,5.22779482,2450.8,2450.4,2.23188]
[1751444294024,2.88257779,2450.8,2450.5,2.0404]
[1751444294322,24.741,2450.7,2450.6,5.20152703]
[1751444294517,24.741,2450.7,2450.6,6.55152703]